[Event "Gibraltar Masters 18th"]
[Site "Gibraltar"]
[Date "2020.01.22"]
[Round "2.38"]
[White "Maze, Sebastien"]
[Black "Chen, Qi B"]
[Result "1/2-1/2"]
[ECO "C67"]
[WhiteElo "2550"]
[BlackElo "2432"]
[PlyCount "81"]
[EventDate "2020.01.21"]
[EventType "swiss"]
[EventRounds "10"]
[EventCountry "GGB"]
[SourceTitle "BritBase"]
[Source "John Saunders"]
[SourceDate "2021.06.05"]
[SourceVersion "1"]
[SourceVersionDate "2021.06.05"]
[SourceQuality "1"]
[TimeControl "40/100:0"]
[WhiteClock "0:01:32"]
[BlackClock "0:03:29"]

1. e4 {[%emt 0:00:00]} e5 {[%emt 0:00:00]} 2. Nf3 {[%emt 0:00:00]} Nc6 {
[%emt 0:00:00]} 3. Bb5 {[%emt 0:00:00]} Nf6 {[%emt 0:00:00]} 4. O-O {[%emt 0:
00:00]} Nxe4 {[%emt 0:00:00]} 5. d4 {[%emt 0:00:00]} Nd6 {[%emt 0:00:00]} 6.
Bxc6 {[%emt 0:00:00]} dxc6 {[%emt 0:00:00]} 7. dxe5 {[%emt 0:00:00]} Nf5 {
[%emt 0:00:00]} 8. Qxd8+ {[%emt 0:00:00]} Kxd8 {[%emt 0:00:00]} 9. h3 {[%emt 0:
00:00]} Ke8 {[%emt 0:00:00]} 10. Nc3 {[%emt 0:00:00]} h5 {[%emt 0:00:00]} 11.
Ne2 {[%emt 0:00:00]} b6 {[%emt 0:00:00]} 12. Re1 {[%emt 0:00:00]} Be6 {[%emt 0:
00:00]} 13. Bg5 {[%emt 0:00:00]} Be7 {[%emt 0:00:00]} 14. Nf4 {[%emt 0:00:00]}
Rd8 {[%emt 0:00:00]} 15. Rad1 {[%emt 0:00:00]} Rxd1 {[%emt 0:00:00]} 16. Rxd1 {
[%emt 0:00:00]} Bc8 {[%emt 0:00:00]} 17. Bxe7 {[%emt 0:00:00]} Nxe7 {[%emt 0:
00:00]} 18. Ng5 {[%emt 0:00:00]} Rh6 {[%emt 0:00:00]} 19. g3 {[%emt 0:00:00]}
Be6 {[%emt 0:00:00]} 20. h4 {[%emt 0:00:00]} a5 {[%emt 0:00:00]} 21. Ngxe6 {
[%emt 0:00:00]} fxe6 {[%emt 0:00:00]} 22. Kg2 {[%emt 0:00:00]} Ng6 {[%emt 0:00:
00]} 23. Nxg6 {[%emt 0:00:00]} Rxg6 {[%emt 0:00:00]} 24. f3 {[%emt 0:00:00]}
Rh6 {[%emt 0:00:00]} 25. Kh3 {[%emt 0:00:00]} Rh8 {[%emt 0:00:00]} 26. g4 {
[%emt 0:00:00]} c5 {[%emt 0:00:00]} 27. a4 {[%emt 0:00:00]} Ke7 {[%emt 0:00:00]
} 28. Kg3 {[%emt 0:00:00]} Rf8 {[%emt 0:00:00]} 29. c4 {[%emt 0:00:00]} Rh8 {
[%emt 0:00:00]} 30. Rd3 {[%emt 0:00:00]} Rh6 {[%emt 0:00:00]} 31. b3 {[%emt 0:
01:18]} Ke8 {[%emt 0:00:00]} 32. Rd2 {[%emt 0:00:00]} Rh8 {[%emt 0:00:00]} 33.
Rh2 {[%emt 0:00:00]} Rf8 {[%emt 0:00:00]} 34. gxh5 {[%emt 0:00:00]} Rf5 {
[%emt 0:00:00]} 35. h6 {[%emt 0:00:00]} gxh6 {[%emt 0:00:00]} 36. f4 {[%emt 0:
00:00]} Ke7 {[%emt 0:00:00]} 37. h5 {[%emt 0:00:00]} Ke8 {[%emt 0:00:00]} 38.
Rh4 {[%emt 0:00:00]} Kf7 {[%emt 0:00:00]} 39. Kf3 {[%emt 0:00:00]} Kf8 {
[%emt 0:00:00]} 40. Kf2 {[%emt 0:00:00]} Kf7 {[%emt 0:00:00]} 41. Kg2 {[%emt 0:
00:30]} 1/2-1/2

[Event "Gibraltar Masters 18th"]
[Site "Gibraltar"]
[Date "2020.01.22"]
[Round "2.39"]
[White "Merario Alarcon, Andres"]
[Black "Ibarra Jerez, Jose Carlos"]
[Result "0-1"]
[ECO "A40"]
[WhiteElo "2412"]
[BlackElo "2548"]
[PlyCount "50"]
[EventDate "2020.01.21"]
[EventType "swiss"]
[EventRounds "10"]
[EventCountry "GGB"]
[SourceTitle "BritBase"]
[Source "John Saunders"]
[SourceDate "2021.06.05"]
[SourceVersion "1"]
[SourceVersionDate "2021.06.05"]
[SourceQuality "1"]
[TimeControl "40/100:0"]
[WhiteClock "0:02:13"]
[BlackClock "0:16:08"]

1. d4 {[%emt 0:00:00]} g6 {[%emt 0:00:00]} 2. e4 {[%emt 0:00:00]} Bg7 {[%emt 0:
00:00]} 3. c4 {[%emt 0:00:00]} e6 {[%emt 0:00:00]} 4. Nc3 {[%emt 0:00:00]} Ne7
{[%emt 0:00:00]} 5. Nf3 {[%emt 0:00:00]} d5 {[%emt 0:00:00]} 6. Bd3 {[%emt 0:
00:00]} dxe4 {[%emt 0:00:00]} 7. Bxe4 {[%emt 0:00:00]} Nbc6 {[%emt 0:00:00]} 8.
Be3 {[%emt 0:00:00]} O-O {[%emt 0:00:00]} 9. O-O {[%emt 0:00:00]} Na5 {[%emt 0:
00:00]} 10. Qa4 {[%emt 0:00:00]} c5 {[%emt 0:00:00]} 11. dxc5 {[%emt 0:00:00]}
Bd7 {[%emt 0:00:00]} 12. Qb4 {[%emt 0:00:00]} f5 {[%emt 0:00:00]} 13. Bd3 {
[%emt 0:00:00]} e5 {[%emt 0:00:00]} 14. Rad1 {[%emt 0:00:00]} Nac6 {[%emt 0:08:
52]} 15. Qxb7 {[%emt 0:00:00]} Rb8 {[%emt 0:00:00]} 16. Qa6 {[%emt 0:00:00]} e4
{[%emt 0:00:00]} 17. Nxe4 {[%emt 0:00:00]} fxe4 {[%emt 0:00:00]} 18. Bxe4 {
[%emt 0:00:00]} Rxb2 {[%emt 0:00:00]} 19. Rd6 {[%emt 0:00:00]} Qe8 {[%emt 0:00:
00]} 20. Rfd1 {[%emt 0:00:00]} Nb4 {[%emt 0:00:00]} 21. Qxa7 {[%emt 0:00:00]}
Nc8 {[%emt 0:00:00]} 22. Qb7 {[%emt 0:00:00]} Nxd6 {[%emt 0:00:00]} 23. cxd6 {
[%emt 0:00:00]} Bc6 {[%emt 0:00:00]} 24. Bxc6 {[%emt 0:00:00]} Nxc6 {[%emt 0:
00:00]} 25. Qa6 {[%emt 0:00:00]} Qa8 {[%emt 0:00:00]} 0-1

[Event "Gibraltar Masters 18th"]
[Site "Gibraltar"]
[Date "2020.01.22"]
[Round "2.40"]
[White "Ali Marandi, Cemil Can"]
[Black "Low, Zhen Yu Cyrus"]
[Result "1/2-1/2"]
[ECO "D72"]
[WhiteElo "2546"]
[BlackElo "2415"]
[PlyCount "92"]
[EventDate "2020.01.21"]
[EventType "swiss"]
[EventRounds "10"]
[EventCountry "GGB"]
[SourceTitle "BritBase"]
[Source "John Saunders"]
[SourceDate "2021.06.05"]
[SourceVersion "1"]
[SourceVersionDate "2021.06.05"]
[SourceQuality "1"]
[TimeControl "40/100:0"]
[WhiteClock "0:41:45"]
[BlackClock "0:47:25"]

1. d4 {[%emt 0:00:00]} Nf6 {[%emt 0:00:00]} 2. c4 {[%emt 0:00:00]} g6 {[%emt 0:
00:00]} 3. g3 {[%emt 0:00:00]} Bg7 {[%emt 0:00:00]} 4. Bg2 {[%emt 0:00:00]} d5
{[%emt 0:00:00]} 5. cxd5 {[%emt 0:00:00]} Nxd5 {[%emt 0:00:00]} 6. e4 {[%emt 0:
00:00]} Nb6 {[%emt 0:00:00]} 7. Ne2 {[%emt 0:00:00]} c5 {[%emt 0:00:00]} 8. d5
{[%emt 0:00:00]} e6 {[%emt 0:00:00]} 9. O-O {[%emt 0:00:00]} exd5 {[%emt 0:00:
00]} 10. exd5 {[%emt 0:00:00]} O-O {[%emt 0:00:00]} 11. Nec3 {[%emt 0:00:00]}
Na6 {[%emt 0:00:00]} 12. Bf4 {[%emt 0:00:00]} h5 {[%emt 0:00:00]} 13. Nd2 {
[%emt 0:00:00]} Bf5 {[%emt 0:00:00]} 14. Nde4 {[%emt 0:00:00]} Qd7 {[%emt 0:00:
00]} 15. Bh6 {[%emt 0:00:00]} Rac8 {[%emt 0:00:00]} 16. Re1 {[%emt 0:00:00]}
Rfe8 {[%emt 0:00:00]} 17. Bxg7 {[%emt 0:00:00]} Kxg7 {[%emt 0:00:00]} 18. b3 {
[%emt 0:00:00]} Rcd8 {[%emt 0:00:00]} 19. d6 {[%emt 0:00:00]} Nc8 {[%emt 0:00:
00]} 20. Nxc5 {[%emt 0:00:00]} Rxe1+ {[%emt 0:00:00]} 21. Qxe1 {[%emt 0:00:00]}
Nxc5 {[%emt 0:00:00]} 22. Qe5+ {[%emt 0:00:00]} Kg8 {[%emt 0:00:00]} 23. Qxc5 {
[%emt 0:00:00]} Qxd6 {[%emt 0:00:00]} 24. Qe3 {[%emt 0:00:00]} b6 {[%emt 0:00:
00]} 25. Nd5 {[%emt 0:00:00]} Be6 {[%emt 0:00:00]} 26. Nf4 {[%emt 0:00:00]} Bf5
{[%emt 0:00:00]} 27. Bf3 {[%emt 0:00:00]} Qc5 {[%emt 0:00:00]} 28. Qxc5 {
[%emt 0:00:00]} bxc5 {[%emt 0:00:00]} 29. Rc1 {[%emt 0:00:00]} Rd2 {[%emt 0:00:
00]} 30. Rxc5 {[%emt 0:00:00]} Rxa2 {[%emt 0:00:00]} 31. h3 {[%emt 0:00:00]}
Nd6 {[%emt 0:00:00]} 32. Re5 {[%emt 0:00:00]} Kg7 {[%emt 0:00:00]} 33. Kg2 {
[%emt 0:00:00]} Rb2 {[%emt 0:00:00]} 34. Re3 {[%emt 0:00:00]} Bc8 {[%emt 0:00:
00]} 35. Rd3 {[%emt 0:00:00]} Nf5 {[%emt 0:00:00]} 36. Rc3 {[%emt 0:00:00]} Ba6
{[%emt 0:00:00]} 37. Bd5 {[%emt 0:00:00]} Rd2 {[%emt 0:00:00]} 38. Be4 {
[%emt 0:00:00]} Nd6 {[%emt 0:00:00]} 39. Bf3 {[%emt 0:00:00]} Bb7 {[%emt 0:00:
00]} 40. Bxb7 {[%emt 0:00:00]} Nxb7 {[%emt 0:00:00]} 41. Rc7 {[%emt 0:00:46]}
Nd6 {[%emt 0:00:18]} 42. Ne6+ {[%emt 0:00:00]} Kg8 {[%emt 0:00:00]} 43. Ng5 {
[%emt 0:00:00]} Rd5 {[%emt 0:00:00]} 44. h4 {[%emt 0:00:00]} Rb5 {[%emt 0:00:
00]} 45. Rxa7 {[%emt 0:00:00]} Rxb3 {[%emt 0:00:00]} 46. Rd7 {[%emt 0:00:00]}
Rb6 {[%emt 0:00:00]} 1/2-1/2

[Event "Gibraltar Masters 18th"]
[Site "Gibraltar"]
[Date "2020.01.22"]
[Round "2.41"]
[White "Kulkarni, Bhakti"]
[Black "Kaidanov, Gregory"]
[Result "0-1"]
[ECO "D45"]
[WhiteElo "2404"]
[BlackElo "2546"]
[PlyCount "66"]
[EventDate "2020.01.21"]
[EventType "swiss"]
[EventRounds "10"]
[EventCountry "GGB"]
[SourceTitle "BritBase"]
[Source "John Saunders"]
[SourceDate "2021.06.05"]
[SourceVersion "1"]
[SourceVersionDate "2021.06.05"]
[SourceQuality "1"]
[TimeControl "40/100:0"]
[WhiteClock "0:00:42"]
[BlackClock "0:09:07"]

1. d4 {[%emt 0:00:00]} d5 {[%emt 0:00:00]} 2. c4 {[%emt 0:00:00]} e6 {[%emt 0:
00:00]} 3. Nf3 {[%emt 0:00:00]} Nf6 {[%emt 0:00:00]} 4. Nc3 {[%emt 0:00:00]} c6
{[%emt 0:00:00]} 5. e3 {[%emt 0:00:00]} Nbd7 {[%emt 0:00:00]} 6. b3 {[%emt 0:
00:00]} Bb4 {[%emt 0:00:00]} 7. Bd2 {[%emt 0:00:00]} O-O {[%emt 0:00:00]} 8.
Be2 {[%emt 0:00:00]} Qe7 {[%emt 0:00:00]} 9. O-O {[%emt 0:00:00]} b6 {[%emt 0:
00:00]} 10. Qc1 {[%emt 0:00:00]} Bb7 {[%emt 0:00:00]} 11. a3 {[%emt 0:00:00]}
Bd6 {[%emt 0:00:00]} 12. Qb2 {[%emt 0:00:00]} Rac8 {[%emt 0:00:00]} 13. Rfd1 {
[%emt 0:00:00]} c5 {[%emt 0:00:00]} 14. Be1 {[%emt 0:00:00]} dxc4 {[%emt 0:00:
00]} 15. bxc4 {[%emt 0:00:00]} e5 {[%emt 0:00:00]} 16. dxe5 {[%emt 0:00:00]}
Nxe5 {[%emt 0:00:00]} 17. Nd5 {[%emt 0:00:00]} Bxd5 {[%emt 0:00:00]} 18. cxd5 {
[%emt 0:00:00]} Ne4 {[%emt 0:00:00]} 19. Nd2 {[%emt 0:00:00]} f5 {[%emt 0:00:
00]} 20. Nc4 {[%emt 0:00:00]} Nxc4 {[%emt 0:00:00]} 21. Bxc4 {[%emt 0:00:00]}
Kh8 {[%emt 0:00:00]} 22. Rac1 {[%emt 0:00:00]} Be5 {[%emt 0:00:00]} 23. Qe2 {
[%emt 0:00:00]} Nd6 {[%emt 0:00:00]} 24. Bd3 {[%emt 0:00:00]} Qd7 {[%emt 0:00:
00]} 25. h3 {[%emt 0:00:00]} Rfe8 {[%emt 0:00:00]} 26. Bb1 {[%emt 0:00:00]} b5
{[%emt 0:00:00]} 27. g4 {[%emt 0:00:00]} g6 {[%emt 0:00:00]} 28. Qf3 {[%emt 0:
00:00]} Rf8 {[%emt 0:00:00]} 29. gxf5 {[%emt 0:00:00]} gxf5 {[%emt 0:00:00]}
30. Kh1 {[%emt 0:00:00]} Rg8 {[%emt 0:00:00]} 31. Bd2 {[%emt 0:00:00]} Ne4 {
[%emt 0:00:00]} 32. Ba5 {[%emt 0:01:06]} Rg6 {[%emt 0:00:00]} 33. d6 {[%emt 0:
00:00]} Rh6 {[%emt 0:00:00]} 0-1

[Event "Gibraltar Masters 18th"]
[Site "Gibraltar"]
[Date "2020.01.22"]
[Round "2.42"]
[White "Studer, Noel"]
[Black "Haug, Johannes"]
[Result "1/2-1/2"]
[ECO "E04"]
[WhiteElo "2546"]
[BlackElo "2407"]
[PlyCount "125"]
[EventDate "2020.01.21"]
[EventType "swiss"]
[EventRounds "10"]
[EventCountry "GGB"]
[SourceTitle "BritBase"]
[Source "John Saunders"]
[SourceDate "2021.06.05"]
[SourceVersion "1"]
[SourceVersionDate "2021.06.05"]
[SourceQuality "1"]
[TimeControl "40/100:0"]
[WhiteClock "0:31:13"]
[BlackClock "0:06:03"]

1. d4 {[%emt 0:00:00]} Nf6 {[%emt 0:00:00]} 2. c4 {[%emt 0:00:00]} e6 {[%emt 0:
00:00]} 3. Nf3 {[%emt 0:00:00]} d5 {[%emt 0:00:00]} 4. g3 {[%emt 0:00:00]} dxc4
{[%emt 0:00:00]} 5. Bg2 {[%emt 0:00:00]} c5 {[%emt 0:00:00]} 6. O-O {[%emt 0:
00:00]} Nc6 {[%emt 0:00:00]} 7. dxc5 {[%emt 0:00:00]} Qxd1 {[%emt 0:00:00]} 8.
Rxd1 {[%emt 0:00:00]} Bxc5 {[%emt 0:00:00]} 9. Nfd2 {[%emt 0:00:00]} Na5 {
[%emt 0:00:00]} 10. Na3 {[%emt 0:00:00]} Bxa3 {[%emt 0:00:00]} 11. bxa3 {
[%emt 0:00:00]} Bd7 {[%emt 0:00:00]} 12. Bb2 {[%emt 0:00:00]} Rc8 {[%emt 0:00:
00]} 13. Bc3 {[%emt 0:00:00]} b6 {[%emt 0:00:00]} 14. Rdc1 {[%emt 0:00:00]} Rc7
{[%emt 0:00:00]} 15. Rab1 {[%emt 0:00:00]} O-O {[%emt 0:00:00]} 16. Bxa5 {
[%emt 0:00:00]} bxa5 {[%emt 0:00:00]} 17. Nxc4 {[%emt 0:00:00]} g5 {[%emt 0:00:
00]} 18. Nd6 {[%emt 0:00:00]} Rxc1+ {[%emt 0:00:00]} 19. Rxc1 {[%emt 0:00:00]}
Rb8 {[%emt 0:00:00]} 20. Nb7 {[%emt 0:00:00]} Nd5 {[%emt 0:00:00]} 21. Nxa5 {
[%emt 0:00:00]} Rb2 {[%emt 0:00:00]} 22. e4 {[%emt 0:00:00]} Nb6 {[%emt 0:00:
00]} 23. Bf1 {[%emt 0:00:00]} Rxa2 {[%emt 0:00:00]} 24. Rc3 {[%emt 0:00:00]}
Kf8 {[%emt 0:00:00]} 25. Kg2 {[%emt 0:00:00]} Ke7 {[%emt 0:00:00]} 26. Nb7 {
[%emt 0:00:00]} f5 {[%emt 0:00:00]} 27. Bd3 {[%emt 0:00:00]} f4 {[%emt 0:00:00]
} 28. Nc5 {[%emt 0:00:00]} Be8 {[%emt 0:00:00]} 29. Na6 {[%emt 0:00:00]} Kf6 {
[%emt 0:00:00]} 30. Nc7 {[%emt 0:00:00]} Bf7 {[%emt 0:00:00]} 31. Nb5 {[%emt 0:
00:00]} Nd7 {[%emt 0:00:00]} 32. Bc4 {[%emt 0:00:00]} Rb2 {[%emt 0:00:00]} 33.
Rb3 {[%emt 0:00:05]} Rxb3 34. Bxb3 {[%emt 0:00:00]} Nc5 {[%emt 0:00:00]} 35.
Bc4 {[%emt 0:00:01]} Nxe4 {[%emt 0:00:01]} 36. gxf4 {[%emt 0:00:32]} gxf4 {
[%emt 0:00:39]} 37. Nxa7 {[%emt 0:00:00]} f3+ {[%emt 0:00:00]} 38. Kg1 {
[%emt 0:00:00]} Be8 {[%emt 0:00:25]} 39. Bb5 {[%emt 0:00:00]} Bg6 {[%emt 0:00:
03]} 40. Bd3 {[%emt 0:00:00]} Nxf2 {[%emt 0:00:00]} 41. Kxf2 {[%emt 0:00:00]}
Bxd3 {[%emt 0:00:00]} 42. Kxf3 {[%emt 0:00:00]} Ba6 {[%emt 0:00:00]} 43. Ke3 {
[%emt 0:00:00]} Kf5 {[%emt 0:00:00]} 44. Nc6 {[%emt 0:00:00]} e5 {[%emt 0:00:
00]} 45. Nb4 {[%emt 0:00:00]} Bb5 {[%emt 0:00:00]} 46. Nd3 {[%emt 0:00:00]} Ba4
{[%emt 0:00:00]} 47. Nc5 {[%emt 0:00:00]} Bc6 {[%emt 0:00:00]} 48. a4 {[%emt 0:
00:00]} Kg4 {[%emt 0:00:00]} 49. Kf2 {[%emt 0:00:00]} Kh3 {[%emt 0:00:00]} 50.
Kg1 {[%emt 0:00:00]} e4 {[%emt 0:00:00]} 51. a5 {[%emt 0:00:00]} e3 {[%emt 0:
00:00]} 52. Ne6 {[%emt 0:00:00]} Bb5 {[%emt 0:00:00]} 53. Ng5+ {[%emt 0:00:00]}
Kg4 {[%emt 0:00:00]} 54. Nxh7 {[%emt 0:00:00]} Bd3 {[%emt 0:00:00]} 55. a6 {
[%emt 0:00:00]} Bxa6 {[%emt 0:00:00]} 56. Kg2 {[%emt 0:00:00]} Bb7+ {[%emt 0:
00:00]} 57. Kf1 {[%emt 0:00:00]} Ba6+ {[%emt 0:00:00]} 58. Ke1 {[%emt 0:00:00]}
Kh3 {[%emt 0:00:00]} 59. Nf6 {[%emt 0:00:00]} e2 {[%emt 0:00:00]} 60. Ne4 {
[%emt 0:00:00]} Kxh2 {[%emt 0:00:00]} 61. Nc3 {[%emt 0:00:00]} Kg3 {[%emt 0:00:
00]} 62. Nxe2+ {[%emt 0:00:00]} Bxe2 {[%emt 0:00:00]} 63. Kxe2 {[%emt 0:00:00]}
1/2-1/2

[Event "Gibraltar Masters 18th"]
[Site "Gibraltar"]
[Date "2020.01.22"]
[Round "2.43"]
[White "Seul, Georg"]
[Black "Werle, Jan"]
[Result "0-1"]
[ECO "B02"]
[WhiteElo "2401"]
[BlackElo "2545"]
[PlyCount "62"]
[EventDate "2020.01.21"]
[EventType "swiss"]
[EventRounds "10"]
[EventCountry "GGB"]
[SourceTitle "BritBase"]
[Source "John Saunders"]
[SourceDate "2021.06.05"]
[SourceVersion "1"]
[SourceVersionDate "2021.06.05"]
[SourceQuality "1"]
[TimeControl "40/100:0"]
[WhiteClock "0:01:24"]
[BlackClock "0:31:55"]

1. e4 {[%emt 0:00:00]} e6 {[%emt 0:00:00]} 2. g3 {[%emt 0:00:00]} d5 {[%emt 0:
00:00]} 3. Nc3 {[%emt 0:00:00]} Nf6 {[%emt 0:00:00]} 4. e5 {[%emt 0:00:00]}
Nfd7 {[%emt 0:00:00]} 5. f4 {[%emt 0:00:00]} c5 {[%emt 0:00:00]} 6. Nf3 {
[%emt 0:00:00]} Nc6 {[%emt 0:00:00]} 7. Bg2 {[%emt 0:00:00]} Be7 {[%emt 0:00:
00]} 8. O-O {[%emt 0:00:00]} O-O {[%emt 0:00:00]} 9. d3 {[%emt 0:00:00]} Rb8 {
[%emt 0:00:00]} 10. Ne2 {[%emt 0:00:00]} b5 {[%emt 0:00:00]} 11. c3 {[%emt 0:
00:00]} a5 {[%emt 0:00:00]} 12. Be3 {[%emt 0:00:00]} Nb6 {[%emt 0:00:00]} 13.
b3 {[%emt 0:00:00]} Ba6 {[%emt 0:00:00]} 14. Kh1 {[%emt 0:00:00]} d4 {[%emt 0:
00:00]} 15. cxd4 {[%emt 0:00:00]} c4 {[%emt 0:00:00]} 16. Bg1 {[%emt 0:00:00]}
Nb4 {[%emt 0:00:00]} 17. Ne1 {[%emt 0:00:00]} Bb7 {[%emt 0:00:00]} 18. a3 {
[%emt 0:00:00]} Bxg2+ {[%emt 0:00:00]} 19. Kxg2 {[%emt 0:00:00]} N4d5 {[%emt 0:
00:00]} 20. dxc4 {[%emt 0:00:00]} bxc4 {[%emt 0:00:00]} 21. Rf3 {[%emt 0:00:00]
} Qd7 {[%emt 0:00:00]} 22. Nc2 {[%emt 0:00:00]} cxb3 {[%emt 0:00:00]} 23. Rxb3
{[%emt 0:00:00]} a4 {[%emt 0:00:00]} 24. Rd3 {[%emt 0:00:00]} Nc4 {[%emt 0:00:
00]} 25. Rf3 {[%emt 0:00:00]} Rb2 {[%emt 0:00:00]} 26. Kh3 {[%emt 0:00:00]} Rc8
{[%emt 0:00:00]} 27. Rc1 {[%emt 0:00:00]} Rb3 {[%emt 0:00:00]} 28. Rxb3 {
[%emt 0:00:50]} axb3 {[%emt 0:00:00]} 29. Nb4 {[%emt 0:00:00]} b2 {[%emt 0:00:
00]} 30. Rxc4 {[%emt 0:00:00]} Rxc4 {[%emt 0:00:00]} 31. Qb3 {[%emt 0:00:00]}
Bxb4 {[%emt 0:00:00]} 0-1

[Event "Gibraltar Masters 18th"]
[Site "Gibraltar"]
[Date "2020.01.22"]
[Round "2.44"]
[White "Bellahcene, Bilel"]
[Black "Buksa, Nataliya"]
[Result "1/2-1/2"]
[ECO "E05"]
[WhiteElo "2536"]
[BlackElo "2403"]
[PlyCount "96"]
[EventDate "2020.01.21"]
[EventType "swiss"]
[EventRounds "10"]
[EventCountry "GGB"]
[SourceTitle "BritBase"]
[Source "John Saunders"]
[SourceDate "2021.06.05"]
[SourceVersion "1"]
[SourceVersionDate "2021.06.05"]
[SourceQuality "1"]
[TimeControl "40/100:0"]
[WhiteClock "0:36:45"]
[BlackClock "0:32:47"]

1. d4 {[%emt 0:00:00]} d5 {[%emt 0:00:00]} 2. Nf3 {[%emt 0:00:00]} Nf6 {
[%emt 0:00:00]} 3. c4 {[%emt 0:00:00]} e6 {[%emt 0:00:00]} 4. g3 {[%emt 0:00:
00]} Be7 {[%emt 0:00:00]} 5. Bg2 {[%emt 0:00:00]} O-O {[%emt 0:00:00]} 6. O-O {
[%emt 0:00:00]} dxc4 {[%emt 0:00:00]} 7. Ne5 {[%emt 0:00:00]} c5 {[%emt 0:00:
00]} 8. dxc5 {[%emt 0:00:00]} Qc7 {[%emt 0:00:00]} 9. Nxc4 {[%emt 0:00:00]} Rd8
{[%emt 0:00:00]} 10. Nbd2 {[%emt 0:00:00]} Bxc5 {[%emt 0:00:00]} 11. Qc2 {
[%emt 0:00:00]} Nc6 {[%emt 0:00:00]} 12. Nb3 {[%emt 0:00:00]} Nb4 {[%emt 0:00:
00]} 13. Qc3 {[%emt 0:00:00]} Nbd5 {[%emt 0:00:00]} 14. Qe5 {[%emt 0:00:00]}
Qxe5 {[%emt 0:00:00]} 15. Nxe5 {[%emt 0:00:00]} Bd6 {[%emt 0:00:00]} 16. Nd3 {
[%emt 0:00:00]} e5 {[%emt 0:00:00]} 17. Bg5 {[%emt 0:00:00]} h6 {[%emt 0:00:00]
} 18. Bxf6 {[%emt 0:00:00]} Nxf6 {[%emt 0:00:00]} 19. Ndc5 {[%emt 0:00:00]} Rb8
{[%emt 0:00:00]} 20. Rfd1 {[%emt 0:00:00]} b6 {[%emt 0:00:00]} 21. Ne4 {
[%emt 0:00:00]} Nxe4 {[%emt 0:00:00]} 22. Bxe4 {[%emt 0:00:00]} Bg4 {[%emt 0:
00:00]} 23. Kf1 {[%emt 0:00:00]} Rbc8 {[%emt 0:00:00]} 24. Rac1 {[%emt 0:00:00]
} Rxc1 {[%emt 0:00:00]} 25. Nxc1 {[%emt 0:00:00]} Kf8 {[%emt 0:00:00]} 26. a3 {
[%emt 0:00:00]} Ke7 {[%emt 0:00:00]} 27. Na2 {[%emt 0:00:00]} Bc5 {[%emt 0:00:
00]} 28. Rxd8 {[%emt 0:00:00]} Kxd8 {[%emt 0:00:00]} 29. e3 {[%emt 0:00:00]}
Ke7 {[%emt 0:00:00]} 30. Nc3 {[%emt 0:00:00]} Bd6 {[%emt 0:00:00]} 31. Ke1 {
[%emt 0:00:00]} Be6 {[%emt 0:00:00]} 32. Kd2 {[%emt 0:00:00]} f5 {[%emt 0:00:
00]} 33. Bd5 {[%emt 0:00:00]} Bc8 {[%emt 0:00:00]} 34. Nb5 {[%emt 0:00:00]} Bb8
{[%emt 0:00:00]} 35. Kd3 {[%emt 0:00:00]} Bd7 {[%emt 0:00:00]} 36. Nc3 {
[%emt 0:00:00]} Bc7 {[%emt 0:00:52]} 37. Kc4 {[%emt 0:00:00]} Bd8 {[%emt 0:00:
00]} 38. e4 {[%emt 0:00:00]} g6 {[%emt 0:00:05]} 39. b4 {[%emt 0:00:00]} Bc7 {
[%emt 0:00:04]} 40. f3 {[%emt 0:00:00]} Bb8 {[%emt 0:00:07]} 41. Bb7 {[%emt 0:
00:00]} Bd6 {[%emt 0:00:00]} 42. a4 {[%emt 0:00:00]} Ke6 {[%emt 0:00:00]} 43.
a5 {[%emt 0:00:00]} bxa5 {[%emt 0:00:00]} 44. bxa5 {[%emt 0:00:00]} Bc7 {
[%emt 0:00:00]} 45. a6 {[%emt 0:00:00]} Bb6 {[%emt 0:00:00]} 46. h3 {[%emt 0:
00:00]} Bf2 {[%emt 0:00:00]} 47. exf5+ {[%emt 0:00:00]} gxf5 {[%emt 0:00:00]}
48. g4 {[%emt 0:00:00]} Kd6 {[%emt 0:00:00]} 1/2-1/2